Cogmind - Beta 16 @@@ ROGUE MODE // 2025.10.29 @ 22:39:32 Player: ChromeKnight Result: Destroyed by G-73 Enforcer with Phase Gun Performance ------------- Evolutions (8) 4000 Regions Visited (26) 5200 Robots Destroyed (81) 405 Value Destroyed (3331) 3331 Prototype IDs (57) 1140 Alien Tech Used (5) 1000 Bonus (10486) 10486 TOTAL SCORE: 25562 Bonus ------- High Alert Combat Kills 52 Follower Combat Kills 334 Met Data Miner 300 Met Zhirov 300 Met Warlord at Base 500 MAIN.C Attacked Warlord 500 Found Hidden Lab 3000 Met Warlord at Research 2000 Invited to Help at Command 2000 Scanned by Researcher 500 Pursued by Intercept 1000 Cogmind --------- Core Integrity 0/1450 Matter 300/300 Energy 100/100 System Corruption 4% Temperature Cool (9) Movement Core (150) Ox2 Location -2/Testing Parts ------- > --- POWER (1) -------- (None) > --- PROPULSION (3) --- (None) > --- UTILITY (18) ----- Spectral Analyzer Experimental Melee Analysis Suite Advanced Target Analyzer Experimental Core Analyzer Experimental Core Analyzer Improved Armor Integrity Analyzer Improved Weapon Shielding Experimental Weapon Shielding Graphene Brace > --- WEAPON (2) ------- Plasma Lance > --- INVENTORY (5) ---- Electron Diverter Linked Autogun Peak State ------------ > --- POWER ------------ (None) > --- PROPULSION ------- Impulse Thruster Impulse Thruster Array > --- UTILITY ---------- Spectral Analyzer Long-range Sensor Array Advanced Signal Interpreter Improved Melee Analysis Suite Experimental Melee Analysis Suite Experimental Melee Analysis Suite Advanced Target Analyzer Advanced Target Analyzer Experimental Core Analyzer Experimental Core Analyzer Improved Armor Integrity Analyzer Improved Propulsion Shielding Improved Weapon Shielding Experimental Weapon Shielding Centrium Light Armor Plating Centrium Light Armor Plating Centrium Medium Armor Plating Graphene Brace > --- WEAPON ----------- Particle Cleaver Plasma Lance > --- INVENTORY -------- Medium Regenerative Plating Transdimensional Reconstructor Immobilizer Linked Autogun [Rating: 172] Favorites ----------- Power Backup Power III Engine Backup Power III Power Core Backup Power VII Reactor Compact Particle Reactor Propulsion Cooled Nuclear Pulse Thruster Treads Light Treads Hover Unit Gravmag Array Flight Unit Cooled Nuclear Pulse Thruster Utility System Shield Device Improved Sensor Array Storage Small Storage Unit Processor Improved Melee Analysis Suite Hackware System Shield Protection Improved Propulsion Shielding Weapon Greatsword Energy Gun Medium Laser Energy Cannon Vortex Driver Ballistic Gun Minigun Ballistic Cannon Compact Linear Accelerator Launcher Rocket Launcher Slashing Weapon Greatsword Piercing Weapon Lance Special Melee Weapon Improved Datajack Build | -11 -10 -10 -10 -9 -8 -7 -7 -7 -7 -6 -6 -5 -5 -5 -5 -4 -4 -4 -4 -4 -3 -3 -3 -3 -2 -2 ------- Run | Yrd Mat Min Exi Min Mat Fac Low Low Dat Pro Fac Fac Upp Upp Zhi Pro Fac Upp Upp War Pro Res Arm Lab Res Tes Slots Evolved 16 | . . . . . 4 2 . . . . 2 2 . . . . 2 . . . . 2 . . 2 . Power . | . . . . . . . . . . . . . . . . . . . . . . . . . . . Propulsion 1 | . . . . . . . . . . . . . . . . . 1 . . . . . . . . . Utility 15 | . . . . . 4 2 . . . . 2 2 . . . . 1 . . . . 2 . . 2 . Weapon . | . . . . . . . . . . . . . . . . . . . . . . . . . . . Parts Attached 143 | 5 1 . . . 24 17 . 1 4 1 5 6 . . 7 1 11 . . 6 . 8 2 3 39 2 Power 12 | . . . . . 2 3 . . 1 1 1 . . . 2 . . . . . . 1 . . 1 . Engine 5 | . . . . . 1 2 . . 1 . . . . . . . . . . . . 1 . . . . Core 5 | . . . . . 1 1 . . . 1 1 . . . 1 . . . . . . . . . . . Reactor 2 | . . . . . . . . . . . . . . . 1 . . . . . . . . . 1 . Propulsion 21 | 2 . . . . 4 3 . . 1 . . . . . 4 . 1 . . 2 . . . . 4 . Treads 5 | 2 . . . . 3 . . . . . . . . . . . . . . . . . . . . . Leg . | . . . . . . . . . . . . . . . . . . . . . . . . . . . Wheel . | . . . . . . . . . . . . . . . . . . . . . . . . . . . Hover 7 | . . . . . 1 3 . . 1 . . . . . 2 . . . . . . . . . . . Flight 9 | . . . . . . . . . . . . . . . 2 . 1 . . 2 . . . . 4 . Utility 81 | 1 1 . . . 12 7 . 1 1 . 4 4 . . 1 1 8 . . 2 . 5 1 2 28 2 Device 22 | . 1 . . . 3 2 . . . . . 2 . . 1 . 4 . . 1 . 1 1 . 6 . Storage 2 | 1 . . . . 1 . . . . . . . . . . . . . . . . . . . . . Processor 27 | . . . . . 5 1 . . . . 3 . . . . . 2 . . 1 . 2 . . 11 2 Hackware 11 | . . . . . 1 2 . . 1 . 1 2 . . . 1 . . . . . 2 . 1 . . Protection 19 | . . . . . 2 2 . 1 . . . . . . . . 2 . . . . . . 1 11 . Artifact . | . . . . . . . . . . . . . . . . . . . . . . . . . . . Weapon 29 | 2 . . . . 6 4 . . 1 . . 2 . . . . 2 . . 2 . 2 1 1 6 . Energy Gun 6 | 2 . . . . 1 . . . . . . . . . . . . . . 1 . . . 1 1 . Energy Cannon 1 | . . . . . . . . . . . . . . . . . . . . 1 . . . . . . Ballistic Gun 7 | . . . . . 4 . . . . . . . . . . . . . . . . 2 . . 1 . Ballistic Cannon 1 | . . . . . . . . . . . . . . . . . . . . . . . . . 1 . Launcher 1 | . . . . . 1 . . . . . . . . . . . . . . . . . . . . . Special Weapon . | . . . . . . . . . . . . . . . . . . . . . . . . . . . Impact Weapon . | . . . . . . . . . . . . . . . . . . . . . . . . . . . Slashing Weapon 9 | . . . . . . 4 . . 1 . . . . . . . 1 . . . . . 1 . 2 . Piercing Weapon 2 | . . . . . . . . . . . . 1 . . . . . . . . . . . . 1 . Special Melee Weapon 2 | . . . . . . . . . . . . 1 . . . . 1 . . . . . . . . . Unidentified Prototypes 30 | . . . . . 2 . . 1 . . . . . . 4 . . . . 5 . . 1 4 13 . Corrupted Parts 1 | . . . . . 1 . . . . . . . . . . . . . . . . . . . . . System Corruption 4 | . . . . . 4 . . . . . . . . . . . . . . . . . . . . . Parts Lost 52 | . . . . 1 2 1 . . 3 . 1 2 . . . 4 2 . . 1 . 3 1 . 22 9 Power 3 | . . . . . . 1 . . 1 . . . . . . . . . . . . . . . 1 . Propulsion 6 | . . . . . 1 . . . . . . . . . . . . . . . . . . . 3 2 Utility 37 | . . . . . 1 . . . 1 . . 2 . . . 4 2 . . 1 . 2 1 . 16 7 Weapon 6 | . . . . 1 . . . . 1 . 1 . . . . . . . . . . 1 . . 2 . Highest Loss Streak 14 | . . . . 1 1 1 . . 3 . 1 1 . . . 4 1 . . 1 . 2 1 . 14 9 To Critical Strikes . | . . . . . . . . . . . . . . . . . . . . . . . . . . . Average Backups 7 | . . 2 3 3 17 6 7 6 6 5 7 7 8 8 8 7 2 5 5 4 5 4 3 3 3 1 Power . | . . . . . 2 . 1 1 . . . 1 1 1 . . . . . . . . . . . . Propulsion 1 | . . . . . 1 1 2 2 2 2 2 2 2 2 2 3 . 2 2 1 2 2 1 1 . . Utility 3 | . . 2 2 2 6 3 3 2 2 3 3 3 5 5 4 3 . 1 1 . . . . 1 . . Weapon 1 | . . . 1 1 6 1 1 1 1 . . . . . . . . . . . 1 . 1 1 1 1 Tool/Special . | . . . . . . . . . . . . . . . . . . . . . . . . . . . Unused Backups 27 | . . . . . 3 12 . . . . 1 4 . 1 . 2 . . . 2 . . . 1 . 1 Power 1 | . . . . . . . . . . . . 1 . . . . . . . . . . . . . . Propulsion 6 | . . . . . . . . . . . 1 2 . . . . . . . 2 . . . . . 1 Utility 12 | . . . . . 1 6 . . . . . 1 . 1 . 2 . . . . . . . 1 . . Weapon 8 | . . . . . 2 6 . . . . . . . . . . . . . . . . . . . . Tool/Special . | . . . . . . . . . . . . . . . . . . . . . . . . . . . Average Slot Usage (%) 86 | . 78 85 85 76 88 91 92 92 86 84 82 88 88 94 92 92 77 80 80 85 85 79 95 93 75 75 Engine 1 | . . . . . . 5 7 7 6 . . . . . . . . . . 4 5 4 4 4 . . Core 2 | . . . . . 2 1 . . . 6 6 5 5 5 2 . . . . . . . . . . . Treads 3 | . 28 28 28 28 17 . . . . . . . . . . . . . . . . . . . . . Hover 4 | . . . . . . 14 15 14 11 7 6 5 5 5 6 11 . . . . . . . . . . Flight 3 | . . . . . . . . . . . . . . . 1 . 14 15 15 15 15 13 13 13 7 7 Device 12 | . 7 14 14 14 11 14 15 14 6 13 12 11 11 11 10 10 10 15 15 15 15 10 12 13 10 4 Storage 4 | . 14 14 14 14 9 7 7 7 7 7 6 5 5 5 5 4 . . . . . . . . . . Processor 20 | . . . . . 21 25 23 21 20 14 17 16 16 16 16 16 17 25 25 22 20 20 27 27 33 34 Hackware 13 | . . . . . . 10 15 14 16 21 20 32 27 27 27 26 16 10 10 10 10 12 13 15 3 . Protection 8 | . . . . . 7 1 . 3 10 7 6 4 5 11 11 11 10 10 10 13 15 13 13 13 17 23 Energy Gun 1 | . 28 28 28 19 . . . . . . . 1 . . . . . . . . . . . . . . Ballistic Gun 2 | . . . . . 17 . . . . . . . . . . . . . . . . . . . . . Slashing Weapon 2 | . . . . . . 6 7 7 6 6 5 . . . . . 1 5 5 5 5 1 3 4 2 . Piercing Weapon 1 | . . . . . . . . . . . . 3 5 5 4 5 3 . . . . . . . . 4 Special Melee Weapon 1 | . . . . . . . . . . . . . 5 5 5 5 3 . . . . 1 4 . . . Peak Build Rating 172 | 5 6 7 7 7 34 44 44 47 54 54 62 90 83 83 86 78 105 95 95 114 107 125 135 141 172 158 Average Rating 73 | 3 5 6 7 6 26 41 44 45 47 53 59 84 79 82 78 77 83 95 95 106 107 108 128 128 135 141 On Entrance 64 | . 5 6 7 7 6 33 44 44 47 39 54 54 79 83 82 78 64 95 95 95 107 107 118 128 132 141 Avg Prop Armor Cover (%) 7 | . . . . . . . . . . . . . . . . . . . . . . . . . 7 . Naked Turns . | . . . . . . . . . . . . . . . . . . . . . . . . . . . Heaviest Build 104 | 8 9 9 9 9 104 17 14 16 16 28 28 21 19 19 20 15 18 15 15 21 21 21 20 19 32 23 Greatest Support 40 | 40 40 40 40 40 40 23 17 17 20 20 20 20 20 20 20 19 27 18 18 25 22 25 25 25 23 23 Greatest Overweight (x) 6 | . . . . . 4 . . . 5 1 1 1 . . 3 . . . . . . . . . 6 6 Average Overweight (x) . | . . . . . 2 . . . . . . . . . . . . . . . . . . . . . Largest Inventory Capacity 25 | 8 8 8 8 8 25 25 8 8 8 8 8 8 8 8 8 8 5 5 5 5 5 5 5 5 5 5 Average Capacity 9 | 6 8 8 8 8 24 8 8 8 8 8 8 8 8 8 8 7 5 5 5 5 5 5 5 5 5 5 Most Carried 25 | . 2 6 6 6 25 25 8 8 8 8 8 8 8 8 8 8 5 5 5 5 5 5 5 5 5 3 Average Carried 7 | . . 4 6 6 20 7 8 7 7 5 7 7 7 8 7 7 2 5 5 4 5 4 4 4 4 2 Final Capacity 25 | 8 8 8 8 8 25 8 8 8 8 8 8 8 8 8 8 5 5 5 5 5 5 5 5 5 5 5 Final Carried 25 | . 2 6 6 6 25 8 8 7 8 5 8 8 8 8 8 5 5 5 5 5 5 5 4 5 2 3 Class Distribution -------------------- 27% | Hacker-Scout 23% | Wizard-Scout 13% | Mutant 7% | Hacker-Sprinter 6% | Hacker-Assassin 5% | Scout 5% | Scavenger-Scout 4% | Scavenger-Mutant 3% | Skirmisher Dominant Class ---------------- Mutant | -10/Materials Mutant | -10/Mines Mutant | -10/Exiles Mutant | -9/Mines Mutant | -8/Materials Scout | -7/Factory Hacker-Scout | -7/Lower Caves Hacker-Scout | -7/Lower Caves Hacker-Scout | -7/Data Miner Hacker-Assassin | -6/Proximity Caves Hacker-Scout | -6/Factory Wizard-Scout | -5/Factory Wizard-Scout | -5/Upper Caves Wizard-Scout | -5/Upper Caves Wizard-Scout | -5/Zhirov Wizard-Scout | -4/Proximity Caves Hacker-Scout | -4/Factory Hacker-Scout | -4/Upper Caves Hacker-Scout | -4/Upper Caves Hacker-Scout | -4/Warlord Hacker-Scout | -3/Proximity Caves Hacker-Sprinter | -3/Research Hacker-Sprinter | -3/Armory Wizard-Sprinter | -3/Lab Scavenger-Scout | -2/Research Scavenger-Mutant | -2/Testing Resources | -11 -10 -10 -10 -9 -8 -7 -7 -7 -7 -6 -6 -5 -5 -5 -5 -4 -4 -4 -4 -4 -3 -3 -3 -3 -2 -2 ----------- Run | Yrd Mat Min Exi Min Mat Fac Low Low Dat Pro Fac Fac Upp Upp Zhi Pro Fac Upp Upp War Pro Res Arm Lab Res Tes Matter Collected 2616 | 186 63 11 . . 880 248 30 20 . 95 50 . 70 . 110 . . 177 2 102 . 51 . . 499 22 Remotely . | . . . . . . . . . . . . . . . . . . . . . . . . . . . Salvage Created 3760 | . 49 94 . . 939 577 . . 25 88 177 . . . 329 . . 213 . . . 102 . . 1117 50 Parts 191 | . 7 15 . . 45 36 . . 4 3 5 . . . 4 . . 3 . . . 7 . . 58 4 Haulers Intercepted 4 | . . . . . 1 2 . . . . . . . . . . . . . . . . . . 1 . Recyclers Shooed . | . . . . . . . . . . . . . . . . . . . . . . . . . . . Parts Field Recycled . | . . . . . . . . . . . . . . . . . . . . . . . . . . . Retrieved Matter . | . . . . . . . . . . . . . . . . . . . . . . . . . . . Parts Self-Destructed 25 | . . . . . . . . . . . . . . 12 4 . . 9 . . . . . . . . Prevented . | . . . . . . . . . . . . . . . . . . . . . . . . . . . Parts Restored . | . . . . . . . . . . . . . . . . . . . . . . . . . . . Kills | -11 -10 -10 -10 -9 -8 -7 -7 -7 -7 -6 -6 -5 -5 -5 -5 -4 -4 -4 -4 -4 -3 -3 -3 -3 -2 -2 ------- Run | Yrd Mat Min Exi Min Mat Fac Low Low Dat Pro Fac Fac Upp Upp Zhi Pro Fac Upp Upp War Pro Res Arm Lab Res Tes Combat Hostiles Destroyed 55 | . 2 6 . 2 18 6 . . . . . . . . . . . . . . . 3 . . 17 1 Melee 25 | . . . . . . 6 . . . . . . . . . . . . . . . 2 . . 16 1 Guns 26 | . 2 6 . 2 15 . . . . . . . . . . . . . . . . 1 . . . . Cannons 1 | . . . . . . . . . . . . . . . . . . . . . . . . . 1 . AOE 3 | . . . . . 3 . . . . . . . . . . . . . . . . . . . . . Classes Destroyed 15 | . 2 . . 1 6 2 . . . 1 1 . . . . . . . . . . . . . 2 . Worker 4 | . . . . . 2 2 . . . . . . . . . . . . . . . . . . . . Hauler 4 | . . . . . 1 2 . . . . . . . . . . . . . . . . . . 1 . Recycler 2 | . . . . . . . . . . . 1 . . . . . . . . . . . . . 1 . Mechanic 1 | . . . . . 1 . . . . . . . . . . . . . . . . . . . . . Operator 4 | . . . . . . 2 . . . . . . . . . . . . . . . . . . 2 . Watcher 9 | . 1 . . . 3 3 . . . . 1 . . . . . . . . . . . . . 1 . Swarmer 25 | . 2 6 . . 6 . . . . . . . . . . . . . . . . 3 . . 8 . Saboteur 1 | . . . . . . . . . . . . . . . . . . . . . . . . . 1 . Grunt 13 | . . . . . 9 3 . . . . . . . . . . . . . . . . . . 1 . Duelist 1 | . . . . . 1 . . . . . . . . . . . . . . . . . . . . . Sentry 4 | . . . . . 3 1 . . . . . . . . . . . . . . . . . . . . Demolisher 2 | . . . . 2 . . . . . . . . . . . . . . . . . . . . . . Programmer 4 | . . . . . . 2 . . . . . . . . . . . . . . . . . . 2 . Tracker 3 | . . . . . . . . . . . . . . . . . . . . . . . . . 2 1 Combat Programmer 1 | . . . . . . . . . . . . . . . . . . . . . . . . . 1 . Striker 2 | . . . . . . . . . . . . . . . . . . . . . . . . . 2 . Samaritan 2 | . . . . . . . . . . 2 . . . . . . . . . . . . . . . . Best Kill Streak 6 | . 3 3 . 2 3 6 . . 1 . 1 . . . . . . . . . . 2 . . 4 1 Combat Bots Only 4 | . 2 3 . 2 3 3 . . . . . . . . . . . . . . . 2 . . 4 1 Max Kills in Single Turn 2 | . 1 1 . 1 2 1 . . 1 1 1 . . . . . . . . . . 1 . . 1 1 Gunslinging . | . . . . . . . . . . . . . . . . . . . . . . . . . . . Exploded 2 | . . . . . 2 . . . . . . . . . . . . . . . . . . . . . Melee 1 | . . . . . . 1 . . . . . . . . . . . . . . . 1 . . 1 1 Uniques/NPCs Destroyed 1 | . . . . . . . . . 1 . . . . . . . . . . . . . . . . . Data Miner (-7/Data Miner) Combat | -11 -10 -10 -10 -9 -8 -7 -7 -7 -7 -6 -6 -5 -5 -5 -5 -4 -4 -4 -4 -4 -3 -3 -3 -3 -2 -2 -------- Run | Yrd Mat Min Exi Min Mat Fac Low Low Dat Pro Fac Fac Upp Upp Zhi Pro Fac Upp Upp War Pro Res Arm Lab Res Tes Hostile Shots Fired 736 | . 3 19 . 9 100 31 . . 17 10 18 6 . . . 32 25 1 4 23 . 63 7 3 224 141 Missed 242 | . . 4 . 1 31 10 . . 5 3 10 3 . . . 13 15 . 3 16 . 25 2 2 67 32 Hits 494 | . 3 15 . 8 69 21 . . 12 7 8 3 . . . 19 10 1 1 7 . 38 5 1 157 109 Melee 4 | . . . . . 2 . . . . . . . . . . . . . . . . . . . 2 . Projectile 490 | . 3 15 . 8 67 21 . . 12 7 8 3 . . . 19 10 1 1 7 . 38 5 1 155 109 AOE 22 | . . . . 9 . . . . . . . . . . . 7 . . . 1 . . 2 . 3 . Critical Strikes 12 | . . . . . 2 . . . . 1 . . . . . 1 . . . . . 1 1 1 2 3 Actively Blocked 8 | . . . . . . . . . . . . . . . . . . . . . . 1 1 1 2 3 Part Disruptions 1 | . . . . . . . . . 1 . . . . . . . . . . . . . . . . . Damage Taken 10532 | . 21 126 . 304 1064 248 . . 570 131 74 154 . . . 645 314 14 28 192 . 856 152 25 3723 1891 Core 2826 | . 8 17 . 107 143 38 . . 290 37 18 92 . . . 293 93 . . 34 . 212 27 . 841 576 Absorbed by Shields 50 | . . . . . . . . . . . . . . . . 16 . . . . . 34 . . . . Redirected to Shielding 556 | . . . . . . 19 . . . 25 6 . . . . 110 . . . . . 34 14 . 271 77 Regen/Repaired (Parts) 932 | . . . . . 22 . . . . . . 31 . . . . 190 . . 26 75 174 285 2 90 37 Core Remaining (%) 76 | 100 . . . 47 74 . . . . 47 97 . . . . 61 . . . . 88 . . 100 . . Volleys Fired 126 | . 3 9 . 5 85 . . . . . . 1 . . . . . . . . . 4 . . 19 . Largest 2 | . 2 2 . 2 2 . . . . . . 1 . . . . . . . . . 2 . . 1 . Hottest 100 | . 90 90 . 90 50 . . . . . . 50 . . . . . . . . . 100 . . 100 . Shots Fired 223 | . 6 18 . 6 166 . . . . . . 1 . . . . . . . . . 7 . . 19 . Gun 206 | . 6 18 . 6 162 . . . . . . 1 . . . . . . . . . 6 . . 7 . Cannon 13 | . . . . . . . . . . . . . . . . . . . . . . 1 . . 12 . Launcher 4 | . . . . . 4 . . . . . . . . . . . . . . . . . . . . . Special . | . . . . . . . . . . . . . . . . . . . . . . . . . . . Kinetic 175 | . . . . . 162 . . . . . . . . . . . . . . . . 6 . . 7 . Thermal 31 | . 6 18 . 6 . . . . . . . 1 . . . . . . . . . . . . . . Explosive 4 | . . . . . 4 . . . . . . . . . . . . . . . . . . . . . Electromagnetic . | . . . . . . . . . . . . . . . . . . . . . . . . . . . Entropic 13 | . . . . . . . . . . . . . . . . . . . . . . 1 . . 12 . Robot Hit Streak 41 | . 3 7 . 2 41 . . . . . . . . . . . . . . . . 3 . . 6 . Robot Miss Streak 3 | . 1 2 . 2 3 . . . . . . . . . . . . . . . . 3 . . 2 . Penetration Max . | . . . . . . . . . . . . . . . . . . . . . . . . . . . Secondary Targets 5 | . . 2 . . 3 . . . . . . . . . . . . . . . . . . . . . Max Gunslinging Chain 1 | . . 1 . . 1 . . . . . . . . . . . . . . . . . . . . . Shots Hit Robots 257 | . 4 12 . 3 118 26 . . 1 2 2 1 . . 9 . 1 5 . . . 9 . . 60 4 Core Hits 108 | . 3 6 . 2 39 13 . . 1 1 1 . . . 3 . . 3 . . . 4 . . 30 2 Critical Kills 1 | . . . . . 1 . . . . . . . . . . . . . . . . . . . . . Critical Parts Destroyed 1 | . . . . . 1 . . . . . . . . . . . . . . . . . . . . . Critical Strikes 24 | . . . . 2 2 5 . . . . . . . . . . . . . . . 1 . . 13 1 Burn 2 | . . . . 2 . . . . . . . . . . . . . . . . . . . . . . Destroy 2 | . . . . . 2 . . . . . . . . . . . . . . . . . . . . . Sever 13 | . . . . . . 5 . . . . . . . . . . . . . . . 1 . . 7 . Impale 1 | . . . . . . . . . . . . . . . . . . . . . . . . . . 1 Sunder 6 | . . . . . . . . . . . . . . . . . . . . . . . . . 6 . Melee Attacks 231 | . . . . . . 52 . 2 6 3 13 14 4 1 9 1 13 6 8 1 4 9 1 6 69 9 Impact . | . . . . . . . . . . . . . . . . . . . . . . . . . . . Slashing 166 | . . . . . . 52 . 2 6 3 13 . . . . . . 6 8 1 4 7 1 6 57 . Piercing 63 | . . . . . . . . . . . . 14 4 1 9 1 13 . . . . . . . 12 9 Sneak Attacks 14 | . . . . . . 5 . . 1 2 1 . . . . . 1 . . . . . . . 4 . Combat Hostiles 2 | . . . . . . 1 . . . . . . . . . . . . . . . . . . 1 . Follow-up Attacks . | . . . . . . . . . . . . . . . . . . . . . . . . . . . Damage Inflicted 10639 | . 46 145 . 51 2241 1819 . . 129 183 177 34 . . 681 . 77 575 . . . 279 . . 4002 200 Guns 2562 | . 46 145 . 51 2025 . . . . . . . . . . . . . . . . 62 . . 233 . Cannons 798 | . . . . . . . . . . . . . . . . . . . . . . . . . 798 . Explosions 216 | . . . . . 216 . . . . . . . . . . . . . . . . . . . . . Melee 7058 | . . . . . . 1819 . . 129 183 177 34 . . 681 . 77 575 . . . 216 . . 2967 200 Ramming 5 | . . . . . . . . . . . . . . . . . . . . . . 1 . . 4 . Kinetic 2320 | . . . . . 2025 . . . . . . . . . . . . . . . . 62 . . 233 . Thermal 242 | . 46 145 . 51 . . . . . . . . . . . . . . . . . . . . . . Explosive 216 | . . . . . 216 . . . . . . . . . . . . . . . . . . . . . Electromagnetic . | . . . . . . . . . . . . . . . . . . . . . . . . . . . Impact . | . . . . . . . . . . . . . . . . . . . . . . . . . . . Slashing 5694 | . . . . . . 1819 . . 129 183 177 . . . . . . 575 . . . 216 . . 2595 . Piercing 1364 | . . . . . . . . . . . . 34 . . 681 . 77 . . . . . . . 372 200 Entropic 798 | . . . . . . . . . . . . . . . . . . . . . . . . . 798 . Highest Corruption 8 | . . . . . 4 . . . . . . . . . . . 3 3 3 3 . . . . 8 4 Average Corruption 4 | . . . . . 4 . . . . . . . . . . . 3 3 3 3 . . . . 5 4 Corruption Purged 5 | . . . . . . . . . . . . . . . . . . . . . . . . . 5 . Corruption Blocked 1 | . . . . . . . . . . . . . . . . . . . . . . . . . 1 . Effects 81 | . . . . . . . . . . . . . . . . . 4 12 10 . . . . . 51 4 Message Errors 16 | . . . . . . . . . . . . . . . . . . 3 1 . . . . . 12 . Matter Fused 24 | . . . . . . . . . . . . . . . . . 3 4 3 . . . . . 12 2 Heat Flow Errors 15 | . . . . . . . . . . . . . . . . . . 1 2 . . . . . 11 1 Energy Discharges 10 | . . . . . . . . . . . . . . . . . . . 4 . . . . . 5 1 Parts Rejected 1 | . . . . . . . . . . . . . . . . . . . . . . . . . 1 . Data Loss (minor) 11 | . . . . . . . . . . . . . . . . . 1 2 . . . . . . 8 . Data Loss (major) 2 | . . . . . . . . . . . . . . . . . . 1 . . . . . . 1 . Alerts 2 | . . . . . . . . . . . . . . . . . . 1 . . . . . . 1 . Overload Shots . | . . . . . . . . . . . . . . . . . . . . . . . . . . . Overflow Damage 908 | . . . . . 10 289 . . . 57 48 . . . 63 . 22 185 . . . 20 . . 190 24 Projectiles 36 | . . . . . . . . . . . . . . . . . . . . . . . . . 36 . Explosions 10 | . . . . . 10 . . . . . . . . . . . . . . . . . . . . . Melee 862 | . . . . . . 289 . . . 57 48 . . . 63 . 22 185 . . . 20 . . 154 24 Knockbacks . | . . . . . . . . . . . . . . . . . . . . . . . . . . . Impact . | . . . . . . . . . . . . . . . . . . . . . . . . . . . Kinetic . | . . . . . . . . . . . . . . . . . . . . . . . . . . . Secondary . | . . . . . . . . . . . . . . . . . . . . . . . . . . . Self-Inflicted Damage 2 | . . . . . . . . . . . . . . . . . . . . . . . . . 2 . Shots . | . . . . . . . . . . . . . . . . . . . . . . . . . . . Rammed 2 | . . . . . . . . . . . . . . . . . . . . . . 1 . . 1 . Targets Rammed 2 | . . . . . . . . . . . . . . . . . . . . . . 1 . . 1 . Kicked . | . . . . . . . . . . . . . . . . . . . . . . . . . . . Crushed . | . . . . . . . . . . . . . . . . . . . . . . . . . . . Highest Temperature 294 | . . . . . 294 . . . . 4 . . . . . . 80 237 256 9 . 48 6 . 246 255 Average Temperature 77 | . . . . . 77 . . . . 4 . . . . . . 42 129 117 5 . 12 6 . 78 144 Received Heat Transfer 1092 | . . . . . 522 69 . . . 81 30 9 . . . 72 75 . . 21 . 48 12 . 63 90 Effects 1 | . . . . . 1 . . . . . . . . . . . . . . . . . . . . . Energy Bleed 1 | . . . . . 1 . . . . . . . . . . . . . . . . . . . . . Siege Activations . | . . . . . . . . . . . . . . . . . . . . . . . . . . . Martial Activations . | . . . . . . . . . . . . . . . . . . . . . . . . . . . Shielding Activations . | . . . . . . . . . . . . . . . . . . . . . . . . . . . Robots Disrupted . | . . . . . . . . . . . . . . . . . . . . . . . . . . . Combat Hostiles . | . . . . . . . . . . . . . . . . . . . . . . . . . . . Robots Corrupted . | . . . . . . . . . . . . . . . . . . . . . . . . . . . Combat Hostiles . | . . . . . . . . . . . . . . . . . . . . . . . . . . . Parts Fried . | . . . . . . . . . . . . . . . . . . . . . . . . . . . Impact Corruptions . | . . . . . . . . . . . . . . . . . . . . . . . . . . . Robots Melted . | . . . . . . . . . . . . . . . . . . . . . . . . . . . Combat Hostiles . | . . . . . . . . . . . . . . . . . . . . . . . . . . . Parts Melted . | . . . . . . . . . . . . . . . . . . . . . . . . . . . Heat Transferred 804 | . 124 384 . 296 . . . . . . . . . . . . . . . . . . . . . . Parts Sabotaged . | . . . . . . . . . . . . . . . . . . . . . . . . . . . Parts Stolen . | . . . . . . . . . . . . . . . . . . . . . . . . . . . Parts Stripped . | . . . . . . . . . . . . . . . . . . . . . . . . . . . Power Chain Reactions . | . . . . . . . . . . . . . . . . . . . . . . . . . . . Alert | -11 -10 -10 -10 -9 -8 -7 -7 -7 -7 -6 -6 -5 -5 -5 -5 -4 -4 -4 -4 -4 -3 -3 -3 -3 -2 -2 ------- Run | Yrd Mat Min Exi Min Mat Fac Low Low Dat Pro Fac Fac Upp Upp Zhi Pro Fac Upp Upp War Pro Res Arm Lab Res Tes Maximum Alert Level 3 | . . . . . 1 . . . . . . . . . . . 1 . . . . . . . 3 2 Low Security (%) 93 | 100 100 100 . 100 99 100 . . . . 100 100 . . . . 94 . . . . 100 100 . 75 . Level 1 3 | . . . . . . . . . . . . . . . . . 5 . . . . . . . 15 26 Level 2 2 | . . . . . . . . . . . . . . . . . . . . . . . . . 8 73 Level 3 . | . . . . . . . . . . . . . . . . . . . . . . . . . . . Level 4 . | . . . . . . . . . . . . . . . . . . . . . . . . . . . Level 5 . | . . . . . . . . . . . . . . . . . . . . . . . . . . . High Security . | . . . . . . . . . . . . . . . . . . . . . . . . . . . Max Security . | . . . . . . . . . . . . . . . . . . . . . . . . . . . Peak Influence 702 | . 55 105 . 50 201 90 . . . . 24 30 . . . . 216 . . . . 85 75 . 702 627 Initial 393 | . . 5 . . 11 72 . . . . 2 . . . . . . . . . . . 35 . . 393 Average 77 | . 15 32 . 27 102 35 . . . . 2 1 . . . . 94 . . . . 18 9 . 167 491 Influence Increases 4452 | . 62 155 . 50 583 413 . . 20 120 79 93 . . 15 . 389 99 . 135 . 335 60 . 1465 379 Destroy 0b10 Robot/C 1400 | . 40 120 . 40 360 120 . . 20 . . . . . . . . 60 . . . 140 . . 340 160 Destroy 0b10 Robot/NC 165 | . 5 . . . 35 45 . . . . 10 . . . 15 . . 15 . . . 15 . . 25 . Destroy Leader 318 | . 2 20 . 10 88 50 . . . . 2 . . . . . . . . . . 42 . . 74 30 Allied During Kill 79 | . . . . . 5 . . . . . . . . . . . . 24 . . . 11 . . . 39 Successful Hack 270 | . . . . . 13 117 . . . . 13 24 . . . . 67 . . . . 12 . . . 24 Disable Machine 105 | . . . . . 30 30 . . . . 15 . . . . . . . . . . . 15 . 15 . Anti-Garrison Action 450 | . . . . . . . . . . . . . . . . . . . . . . . . . 450 . Destroy Structure 225 | . . . . . 37 21 . . . . 9 24 . . . . 22 . . . . 40 . . 66 6 Partial Spotted 165 | . . . . . . . . . . . 15 15 . . . . 75 . . . . 15 . . 45 . Lose Combat Pursuer 1275 | . 15 15 . . 15 30 . . . 120 15 30 . . . . 225 . . 135 . 60 45 . 450 120 Influence Decreases 3880 | . 47 170 . 20 454 498 74 . 20 116 83 93 . . 15 . 261 227 . 102 33 268 127 . 766 506 Entered New Map 566 | . . 10 . . 19 87 29 . . . 2 . . . . . . 48 . . 33 . 32 . . 306 Time Decay 2786 | . 47 160 . 20 425 401 45 . 20 116 75 80 . . 15 . 241 159 . 102 . 149 85 . 556 90 Lost Part 396 | . . . . . 10 10 . . . . 5 11 . . . . 20 . . . . 30 10 . 210 90 Lost Ally 65 | . . . . . . . . . . . . . . . . . . 20 . . . 25 . . . 20 Purge Threat 67 | . . . . . . . . . . . 1 2 . . . . . . . . . 64 . . . . Squads Dispatched 37 | . 1 . . . 1 8 . . . . 1 7 . . . . 2 . . . . 5 3 . 5 4 Investigation 12 | . 1 . . . 1 3 . . . . . 3 . . . . 1 . . . . 2 . . . 1 Extermination 11 | . . . . . . 4 . . . . 1 3 . . . . 1 . . . . 1 1 . . . Reinforcement 8 | . . . . . . 1 . . . . . 1 . . . . . . . . . 2 2 . . 2 Assault . | . . . . . . . . . . . . . . . . . . . . . . . . . . . Garrison . | . . . . . . . . . . . . . . . . . . . . . . . . . . . Intercept 6 | . . . . . . . . . . . . . . . . . . . . . . . . . 5 1 Searches Triggered . | . . . . . . . . . . . . . . . . . . . . . . . . . . . Construction Impeded . | . . . . . . . . . . . . . . . . . . . . . . . . . . . Haulers Reinforced . | . . . . . . . . . . . . . . . . . . . . . . . . . . . Active Scanning Responses . | . . . . . . . . . . . . . . . . . . . . . . . . . . . Cargo Convoy Interrupts . | . . . . . . . . . . . . . . . . . . . . . . . . . . . Stealth | -11 -10 -10 -10 -9 -8 -7 -7 -7 -7 -6 -6 -5 -5 -5 -5 -4 -4 -4 -4 -4 -3 -3 -3 -3 -2 -2 --------- Run | Yrd Mat Min Exi Min Mat Fac Low Low Dat Pro Fac Fac Upp Upp Zhi Pro Fac Upp Upp War Pro Res Arm Lab Res Tes Distress Signals 30 | . . . . . 4 . . . . . 1 . . . . 4 1 . . . . 3 1 . 14 2 Communications Jammed . | . . . . . . . . . . . . . . . . . . . . . . . . . . . Distress Signals . | . . . . . . . . . . . . . . . . . . . . . . . . . . . Times Spotted 257 | . 3 7 . 4 33 14 . . 4 4 6 4 . . . 7 13 4 3 28 . 18 7 1 69 28 Peak Tracking Total 18 | . 3 3 . 3 5 5 . . 4 7 3 2 . . . 7 11 4 3 18 . 5 4 1 9 15 Tactical Retreats 44 | . 1 1 . 1 1 2 . . . 4 1 1 . . . . 4 . . 4 . 4 1 . 17 2 Traps | -11 -10 -10 -10 -9 -8 -7 -7 -7 -7 -6 -6 -5 -5 -5 -5 -4 -4 -4 -4 -4 -3 -3 -3 -3 -2 -2 ------- Run | Yrd Mat Min Exi Min Mat Fac Low Low Dat Pro Fac Fac Upp Upp Zhi Pro Fac Upp Upp War Pro Res Arm Lab Res Tes Traps Triggered 8 | . 1 . . . . 2 . . . . . 1 . . . 1 . . . . . 1 . . 1 1 Indirectly . | . . . . . . . . . . . . . . . . . . . . . . . . . . . Trap Hack Attempts . | . . . . . . . . . . . . . . . . . . . . . . . . . . . Triggered . | . . . . . . . . . . . . . . . . . . . . . . . . . . . Disarmed . | . . . . . . . . . . . . . . . . . . . . . . . . . . . Reprogrammed . | . . . . . . . . . . . . . . . . . . . . . . . . . . . Reused . | . . . . . . . . . . . . . . . . . . . . . . . . . . . Traps Extracted . | . . . . . . . . . . . . . . . . . . . . . . . . . . . Installed . | . . . . . . . . . . . . . . . . . . . . . . . . . . . Triggered . | . . . . . . . . . . . . . . . . . . . . . . . . . . . Most Traps Carried 3 | . . 3 3 3 3 3 . . . . . . . . . . . . . . . . . . . . Machines | -11 -10 -10 -10 -9 -8 -7 -7 -7 -7 -6 -6 -5 -5 -5 -5 -4 -4 -4 -4 -4 -3 -3 -3 -3 -2 -2 ---------- Run | Yrd Mat Min Exi Min Mat Fac Low Low Dat Pro Fac Fac Upp Upp Zhi Pro Fac Upp Upp War Pro Res Arm Lab Res Tes Machines Disabled 11 | . . . . . 2 2 . . . . 1 . . . . . . . . . . . 1 1 4 . Max in Single Turn 1 | . . . . . 1 1 . . . . 1 . . . . . . . . . . . 1 1 1 . Garrison Access 8 | . . . . . 1 1 . . . . . 1 . . . . . . . . . 1 . . 4 . Machines Repaired . | . . . . . . . . . . . . . . . . . . . . . . . . . . . Machines Dismantled . | . . . . . . . . . . . . . . . . . . . . . . . . . . . Machines Sabotaged . | . . . . . . . . . . . . . . . . . . . . . . . . . . . Overloaded Fab Kills . | . . . . . . . . . . . . . . . . . . . . . . . . . . . Hacking | -11 -10 -10 -10 -9 -8 -7 -7 -7 -7 -6 -6 -5 -5 -5 -5 -4 -4 -4 -4 -4 -3 -3 -3 -3 -2 -2 --------- Run | Yrd Mat Min Exi Min Mat Fac Low Low Dat Pro Fac Fac Upp Upp Zhi Pro Fac Upp Upp War Pro Res Arm Lab Res Tes Machines Accessed 75 | . 2 . . . 5 16 . . 4 . 3 13 . 1 5 . 9 . . 5 . 6 1 . 3 2 Terminals 33 | . 2 . . . 2 10 . . . . 2 8 . . . . 4 . . . . 3 1 . . 1 Fabricators 10 | . . . . . . 2 . . . . . 3 . . . . 2 . . . . 1 . . 1 1 Repair Stations 7 | . . . . . 2 1 . . . . . 1 . . . . 2 . . . . 1 . . . . Recycling Units 1 | . . . . . . 1 . . . . . . . . . . . . . . . . . . . . Scanalyzers 2 | . . . . . . 1 . . . . 1 . . . . . . . . . . . . . . . Garrison Access 7 | . . . . . 1 1 . . . . . 1 . . . . 1 . . . . 1 . . 2 . Total Hacks 271 | . 4 . . . 16 47 . . 30 . 9 74 . 6 18 . 26 . . 12 . 15 3 . 8 3 Successful 182 | . . . . . 6 26 . . 30 . 8 51 . 6 18 . 15 . . 12 . 6 2 . 1 1 Failed 88 | . 4 . . . 9 21 . . . . 1 23 . . . . 11 . . . . 9 1 . 7 2 Catastrophic 14 | . . . . . 1 4 . . . . . 1 . . . . 2 . . . . 1 . . 5 . Database Lockouts 1 | . . . . . 1 . . . . . . . . . . . . . . . . . . . . . Manual 89 | . 2 . . . 7 23 . . . . 2 40 . . . . 8 . . 1 . 4 . 1 . 1 Terminals 127 | . 4 . . . 6 27 . . . . 6 61 . . . . 11 . . . . 7 3 . . 2 Fabricators 29 | . . . . . . 4 . . . . . 8 . . . . 8 . . . . 4 . . 4 1 Repair Stations 22 | . . . . . 6 6 . . . . . 4 . . . . 4 . . . . 2 . . . . Recycling Units 2 | . . . . . . 2 . . . . . . . . . . . . . . . . . . . . Scanalyzers 6 | . . . . . . 3 . . . . 3 . . . . . . . . . . . . . . . Garrison Access 19 | . . . . . 4 5 . . . . . 1 . . . . 3 . . . . 2 . . 4 . Terminal Hacks 125 | . . . . . 1 8 . . 30 . 5 36 . 6 18 . 4 . . 12 . 2 2 . . 1 Record 30 | . . . . . . . . . 11 . . 1 . 6 6 . . . . 6 . . . . . . Part Schematic 17 | . . . . . . 1 . . 8 . 1 3 . . 4 . . . . . . . . . . . Robot Schematic 9 | . . . . . . 1 . . 8 . . . . . . . . . . . . . . . . . Robot Analysis 7 | . . . . . 1 . . . . . . 2 . . 4 . . . . . . . . . . . Prototype ID Bank 12 | . . . . . . . . . 3 . . 1 . . 4 . . . . 4 . . . . . . Open Door 2 | . . . . . . . . . . . . . . . . . . . . 2 . . . . . . Level Access Points 2 | . . . . . . . . . . . . 1 . . . . 1 . . . . . . . . . Branch Access Points 3 | . . . . . . 1 . . . . . 1 . . . . 1 . . . . . . . . . Emergency Access Points 4 | . . . . . . . . . . . 1 1 . . . . 1 . . . . . 1 . . . Terminal Index 2 | . . . . . . 1 . . . . . 1 . . . . . . . . . . . . . . Fabricator Index 1 | . . . . . . . . . . . . 1 . . . . . . . . . . . . . . Scanalyzer Index 1 | . . . . . . . . . . . 1 . . . . . . . . . . . . . . . Garrison Index 1 | . . . . . . . . . . . . 1 . . . . . . . . . . . . . . Alert Level 2 | . . . . . . . . . . . . 1 . . . . . . . . . 1 . . . . Unreport Threat 6 | . . . . . . . . . . . 2 3 . . . . . . . . . 1 . . . . Locate Traps 2 | . . . . . . 1 . . . . . 1 . . . . . . . . . . . . . . Dispatch Records 2 | . . . . . . . . . . . . 2 . . . . . . . . . . . . . . Maintenance Status 1 | . . . . . . . . . . . . 1 . . . . . . . . . . . . . . Security Status 2 | . . . . . . . . . . . . 2 . . . . . . . . . . . . . . Surveillance Status 1 | . . . . . . . . . . . . 1 . . . . . . . . . . . . . . Patrol Status 1 | . . . . . . . . . . . . 1 . . . . . . . . . . . . . . Transport Status 1 | . . . . . . . . . . . . 1 . . . . . . . . . . . . . . Recall Investigation 3 | . . . . . . 1 . . . . . 2 . . . . . . . . . . . . . . Recall Extermination 5 | . . . . . . 2 . . . . . 2 . . . . 1 . . . . . . . . . Recall Reinforcements 1 | . . . . . . . . . . . . . . . . . . . . . . . 1 . . . Hauler Manifests 1 | . . . . . . . . . . . . 1 . . . . . . . . . . . . . . Registered Components 1 | . . . . . . . . . . . . 1 . . . . . . . . . . . . . . Zone Layout 5 | . . . . . . . . . . . . 4 . . . . . . . . . . . . . 1 Fabricator Hacks 15 | . . . . . . 2 . . . . . 4 . . . . 6 . . . . 2 . . 1 . Load Schematic 8 | . . . . . . 1 . . . . . 3 . . . . 2 . . . . 1 . . 1 . Build 7 | . . . . . . 1 . . . . . 1 . . . . 4 . . . . 1 . . . . Repair Station Hacks 12 | . . . . . 4 3 . . . . . 3 . . . . 2 . . . . . . . . . Scan Component 4 | . . . . . 1 1 . . . . . 1 . . . . 1 . . . . . . . . . Repair 3 | . . . . . 1 . . . . . . 1 . . . . 1 . . . . . . . . . Refit 5 | . . . . . 2 2 . . . . . 1 . . . . . . . . . . . . . . Recycling Unit Hacks . | . . . . . . . . . . . . . . . . . . . . . . . . . . . Scanalyzer 4 | . . . . . . 2 . . . . 2 . . . . . . . . . . . . . . . Insert Component 3 | . . . . . . 1 . . . . 2 . . . . . . . . . . . . . . . Analyze 1 | . . . . . . 1 . . . . . . . . . . . . . . . . . . . . Garrison Access Hacks 4 | . . . . . 1 1 . . . . . 1 . . . . . . . . . 1 . . . . Seal Access 4 | . . . . . 1 1 . . . . . 1 . . . . . . . . . 1 . . . . Unauthorized Hacks 22 | . . . . . . 10 . . . . 1 7 . . . . 3 . . . . 1 . . . . Terminals 12 | . . . . . . 6 . . . . 1 4 . . . . 1 . . . . . . . . . Assimilate 1 | . . . . . . 1 . . . . . . . . . . . . . . . . . . . . Botnet 7 | . . . . . . 4 . . . . . 3 . . . . . . . . . . . . . . Operators 4 | . . . . . . 1 . . . . 1 1 . . . . 1 . . . . . . . . . Fabricators 6 | . . . . . . 1 . . . . . 3 . . . . 1 . . . . 1 . . . . Prioritize 2 | . . . . . . . . . . . . 1 . . . . 1 . . . . . . . . . Liberate 1 | . . . . . . . . . . . . . . . . . . . . . . 1 . . . . Fabnet 1 | . . . . . . 1 . . . . . . . . . . . . . . . . . . . . Recompile 2 | . . . . . . . . . . . . 2 . . . . . . . . . . . . . . Repair Stations . | . . . . . . . . . . . . . . . . . . . . . . . . . . . Recycling Units 1 | . . . . . . 1 . . . . . . . . . . . . . . . . . . . . Reject 1 | . . . . . . 1 . . . . . . . . . . . . . . . . . . . . Scanalyzers . | . . . . . . . . . . . . . . . . . . . . . . . . . . . Garrison Access 3 | . . . . . . 2 . . . . . . . . . . 1 . . . . . . . . . Redirect 1 | . . . . . . 1 . . . . . . . . . . . . . . . . . . . . Reprogram 1 | . . . . . . . . . . . . . . . . . 1 . . . . . . . . . Watchers 1 | . . . . . . 1 . . . . . . . . . . . . . . . . . . . . Data Cores Recovered . | . . . . . . . . . . . . . . . . . . . . . . . . . . . Used . | . . . . . . . . . . . . . . . . . . . . . . . . . . . Hacking Detections 51 | . 2 . . . 4 15 . . . . 2 9 . . . . 7 . . . . 6 1 . 3 2 Full Trace Events 7 | . . . . . 1 2 . . . . . 1 . . . . 1 . . . . 2 . . . . Feedback Events . | . . . . . . . . . . . . . . . . . . . . . . . . . . . Feedback Blocked . | . . . . . . . . . . . . . . . . . . . . . . . . . . . Robot Schematics Acquired 9 | . . . . . . 1 . . 8 . . . . . . . . . . . . . . . . . Robots Built 3 | . . . . . . . . . . . . . . . . . 3 . . . . . . . . . Authchips . | . . . . . . . . . . . . . . . . . . . . . . . . . . . Time 93 | . . . . . . . . . . . . . . . . . 93 . . . . . . . . . Total Robot Build Rating 21 | . . . . . . . . . . . . . . . . . 21 . . . . . . . . . Part Schematics Acquired 18 | . . . . . . 2 . . 8 . 1 3 . . 4 . . . . . . . . . . . Parts Built 8 | . . . . . . 1 . . . . . 1 . . . . 5 . . . . 1 . . . . Authchips 1 | . . . . . . . . . . . . . . . . . 1 . . . . . . . . . Time 403 | . . . . . . 106 . . . . . 38 . . . . 206 . . . . 53 . . . . Total Part Build Rating 54 | . . . . . . 6 . . . . . 5 . . . . 37 . . . . 6 . . . . Part Studies Acquired . | . . . . . . . . . . . . . . . . . . . . . . . . . . . Parts Repaired 3 | . . . . . 1 . . . . . . 1 . . . . 1 . . . . . . . . . Time 69 | . . . . . 38 . . . . . . 12 . . . . 19 . . . . . . . . . Parts Recycled . | . . . . . . . . . . . . . . . . . . . . . . . . . . . Recycled Matter . | . . . . . . . . . . . . . . . . . . . . . . . . . . . Retrieved Matter . | . . . . . . . . . . . . . . . . . . . . . . . . . . . Retrieved Components . | . . . . . . . . . . . . . . . . . . . . . . . . . . . Parts Scanalyzed 1 | . . . . . . 1 . . . . . . . . . . . . . . . . . . . . Part Schematics Acquired 1 | . . . . . . 1 . . . . . . . . . . . . . . . . . . . . Parts Damaged . | . . . . . . . . . . . . . . . . . . . . . . . . . . . Bothacking | -11 -10 -10 -10 -9 -8 -7 -7 -7 -7 -6 -6 -5 -5 -5 -5 -4 -4 -4 -4 -4 -3 -3 -3 -3 -2 -2 ------------ Run | Yrd Mat Min Exi Min Mat Fac Low Low Dat Pro Fac Fac Upp Upp Zhi Pro Fac Upp Upp War Pro Res Arm Lab Res Tes Used RIF Installer . | . . . . . . . . . . . . . . . . . . . . . . . . . . . Robots Hacked 2 | . . . . . . . . . . . . . . . . . . . . . . 2 . . . . Non-combat . | . . . . . . . . . . . . . . . . . . . . . . . . . . . Combat . | . . . . . . . . . . . . . . . . . . . . . . . . . . . Robot Hacks Applied . | . . . . . . . . . . . . . . . . . . . . . . . . . . . Manual 2 | . . . . . . . . . . . . . . . . . . . . . . 2 . . . . Relay Couplers Released 3 | . . . . . . . . . . . . . . . . . . . . . . . . . 3 . Machine Destruction 3 | . . . . . . . . . . . . . . . . . . . . . . . . . 3 . Fabnet Peak Effective % 3 | . . . . . . . . . . 3 3 1 1 1 1 . . . . . . . . . . . Robots Rewired 1 | . . . . . . . . . . . . . . . . . . . . . . . . . . 1 Allies Hacked 1 | . . . . . . . . . . . . . . . . . . . . . . 1 . . . . Hacks Repelled . | . . . . . . . . . . . . . . . . . . . . . . . . . . . Allies | -11 -10 -10 -10 -9 -8 -7 -7 -7 -7 -6 -6 -5 -5 -5 -5 -4 -4 -4 -4 -4 -3 -3 -3 -3 -2 -2 -------- Run | Yrd Mat Min Exi Min Mat Fac Low Low Dat Pro Fac Fac Upp Upp Zhi Pro Fac Upp Upp War Pro Res Arm Lab Res Tes Total Allies 13 | . . 1 . 3 . 1 . . . . . . . . . . 3 . . . . 4 . . . 1 Largest Group 3 | . . 1 1 3 2 1 . . . . . . . . . . 3 3 . . . 3 . . . 1 Highest-Rated Group 296 | . . 31 31 40 24 26 . . . . . . . . . . 141 141 . . . 296 . . . 116 Highest-Rated Ally 116 | . . 31 31 16 16 26 . . . . . . . . . . 47 47 . . . 116 . . . 116 Total Orders 2 | . . . . . . . . . . . . . . . . . . 2 . . . . . . . . STAY 1 | . . . . . . . . . . . . . . . . . . 1 . . . . . . . . ROAM 1 | . . . . . . . . . . . . . . . . . . 1 . . . . . . . . Ally Attacks 55 | . . . . 10 10 . . . . . . . . . . . . 5 . . . 20 . . . 10 Total Damage 1743 | . . . . 67 80 . . . . . . . . . . . . 124 . . . 958 . . . 514 Kills 18 | . . . . 1 . . . . . . . . . . . . . 3 . . . 7 . . . 7 Allies Corrupted . | . . . . . . . . . . . . . . . . . . . . . . . . . . . Allies Melted 3 | . . . . . . . . . . . . . . . . . . . . . . 1 . . 2 . Intel | -11 -10 -10 -10 -9 -8 -7 -7 -7 -7 -6 -6 -5 -5 -5 -5 -4 -4 -4 -4 -4 -3 -3 -3 -3 -2 -2 ------- Run | Yrd Mat Min Exi Min Mat Fac Low Low Dat Pro Fac Fac Upp Upp Zhi Pro Fac Upp Upp War Pro Res Arm Lab Res Tes Active Infowar (turns) 17588 | . . . . . 2165 1516 608 647 41 1217 659 1209 1805 1064 169 243 599 492 531 621 487 599 702 94 1924 196 Optics 5080 | . . . . . 2165 887 . . . . . . . . . . . . . . . . . . 1832 196 Sensors 14095 | . . . . . 295 1504 608 644 40 1217 659 1204 1805 1064 164 232 528 492 531 621 487 586 . . 1414 . IFF 134 | . . . . . . . . . . . . . . . . . . . . . . . . . 134 . Terrain 12316 | . . . . . 601 1290 608 647 41 1216 659 1209 1805 1064 169 243 451 492 531 621 487 182 . . . . Triangulation 984 | . . . . . . . . . . . . . . . . . . . . . . 93 702 94 95 . Cloaking 95 | . . . . . . . . . . . . . . . . . . . . . . . 25 57 13 . Robot Analysis Total 7 | . . . . . 1 . . . . . . 2 . . 4 . . . . . . . . . . . Derelict Logs Recovered 10 | . . 1 . . . . 2 1 . 1 . . 2 1 . 1 . 1 . . . . . . . . Drone Launches . | . . . . . . . . . . . . . . . . . . . . . . . . . . . Drone Recoveries . | . . . . . . . . . . . . . . . . . . . . . . . . . . . Exploration | -11 -10 -10 -10 -9 -8 -7 -7 -7 -7 -6 -6 -5 -5 -5 -5 -4 -4 -4 -4 -4 -3 -3 -3 -3 -2 -2 ------------- Run | Yrd Mat Min Exi Min Mat Fac Low Low Dat Pro Fac Fac Upp Upp Zhi Pro Fac Upp Upp War Pro Res Arm Lab Res Tes Turns Passed 18924 | 76 218 497 132 40 2438 1516 608 647 104 1234 659 1209 1805 1064 169 243 609 492 531 621 487 599 702 102 1926 196 Spaces Moved 14298 | 45 125 289 83 16 641 1912 395 659 137 581 614 1378 234 317 184 258 660 312 308 899 252 606 154 97 2816 326 Core 25 | 2 . . . . . . . . 1 . . . . . . . . . . . . . . . 21 1 Treads 1197 | 43 125 289 83 16 641 . . . . . . . . . . . . . . . . . . . . . Legs . | . . . . . . . . . . . . . . . . . . . . . . . . . . . Wheels . | . . . . . . . . . . . . . . . . . . . . . . . . . . . Hover 6656 | . . . . . . 1912 395 659 136 581 614 1378 234 317 172 258 . . . . . . . . . . Flight 6420 | . . . . . . . . . . . . . . . 12 . 660 312 308 899 252 606 154 97 2795 325 Fastest Speed 20 | 50 160 160 160 160 160 51 51 51 51 60 60 60 60 60 32 46 20 29 29 26 29 26 26 26 29 39 Average Speed 64 | 155 160 160 160 160 320 51 51 51 54 106 66 60 60 60 53 46 28 29 29 28 29 28 28 28 43 40 Slowest Speed 480 | 160 160 160 160 160 480 51 51 51 300 110 110 110 60 60 245 46 29 29 29 29 29 29 29 29 350 350 Overloaded Moves 227 | . . . . . . . . . . . . . . . . . 22 . . 26 . 125 23 31 . . Propulsion Burnouts . | . . . . . . . . . . . . . . . . . . . . . . . . . . . Robots Hopped 13 | . . . . . . . . . . . . . . . . . 5 . . . . 2 . . . 6 Potential Cave-ins 4 | . . . . . . . . . . . . . . . . . . . 2 . . . . . 2 . Cave-ins Triggered 1 | . . . . . . . . . . . . . . . . . 1 . . . . . . . . . Teleports 2 | . . . . . . . . . . . . . . . . . . . . . . . 1 . 1 . Exploration Rate (%) 44 | 4 26 66 16 9 45 41 61 70 77 62 15 40 43 55 60 46 18 47 50 85 43 17 13 87 72 36 Regions Visited 26 Branch Regions 18 Pre-discovered Areas 8 | . . . . . . . 1 1 1 . . . 1 . 3 1 . . . . . . . . . . Known Exits Taken 22 | . . . 1 . 1 1 1 1 1 1 1 1 1 1 1 1 1 1 1 1 1 1 1 1 1 . Unknown Exits Taken 4 | 1 1 1 . 1 . . . . . . . . . . . . . . . . . . . . . . Scrap Searched 17 | . . . . . . . 1 5 . 2 . . 1 4 . 2 . 2 . . . . . . . . Spaces Dug 96 | . . . . . . 21 . 2 1 1 9 12 4 1 . . 12 1 8 1 4 3 . . 14 2 Terrain Destroyed 139 | . . . . . 33 21 . 2 1 1 9 12 4 1 . . 12 1 8 1 4 3 . . 24 2 Melee 94 | . . . . . . 21 . 2 1 1 9 12 4 1 . . 12 1 8 1 4 1 . . 14 2 Projectile 12 | . . . . . . . . . . . . . . . . . . . . . . 2 . . 10 . AOE 33 | . . . . . 33 . . . . . . . . . . . . . . . . . . . . . Terrain Rammed . | . . . . . . . . . . . . . . . . . . . . . . . . . . . Walls Destroyed . | . . . . . . . . . . . . . . . . . . . . . . . . . . . Machines Disabled . | . . . . . . . . . . . . . . . . . . . . . . . . . . . Actions | -11 -10 -10 -10 -9 -8 -7 -7 -7 -7 -6 -6 -5 -5 -5 -5 -4 -4 -4 -4 -4 -3 -3 -3 -3 -2 -2 --------- Run | Yrd Mat Min Exi Min Mat Fac Low Low Dat Pro Fac Fac Upp Upp Zhi Pro Fac Upp Upp War Pro Res Arm Lab Res Tes Total 23394 | 49 137 306 82 25 890 2360 801 964 154 1192 836 1738 1892 1189 241 380 1054 700 732 1258 657 1009 808 160 3410 370 Wait 8336 | . 7 5 . 5 88 332 407 300 . 603 197 325 1653 870 23 110 361 383 417 341 402 369 648 45 422 23 Move 14249 | 44 124 288 82 15 640 1911 394 658 136 580 613 1377 233 316 183 257 649 311 307 898 251 602 153 96 2816 315 Hop 12 | . . . . . . . . . . . . . . . . . 5 . . . . 2 . . . 5 Pick Up 80 | . 2 4 . . 30 12 . . 2 . 4 7 1 1 2 1 3 . . 2 . 1 1 2 4 1 Fast Attach 107 | 5 1 . . . 11 4 . 2 1 1 5 2 . . 10 . 8 . . 5 . 8 2 5 35 2 Attach 49 | . . . . . 7 9 . 1 2 3 . 4 1 . 1 1 5 . . 2 . 2 1 . 10 . Detach 21 | . . . . . 3 2 . . 2 1 . . . . 2 . 3 . . 1 . 1 . . 6 . Swap 33 | . . . . . 10 7 . . 2 1 . 1 . . . . 1 . . 1 . 1 1 2 6 . Drop 120 | . . . . . 16 31 . 1 3 . 4 7 . 1 11 . 6 . . 7 . 4 1 4 23 1 Fire 126 | . 3 9 . 5 85 . . . . . . 1 . . . . . . . . . 4 . . 19 . Melee 231 | . . . . . . 52 . 2 6 3 13 14 4 1 9 1 13 6 8 1 4 9 1 6 69 9 Ram . | . . . . . . . . . . . . . . . . . . . . . . . . . . . Kick . | . . . . . . . . . . . . . . . . . . . . . . . . . . . Crush . | . . . . . . . . . . . . . . . . . . . . . . . . . . . Escape Stasis 20 | . . . . . . . . . . . . . . . . 10 . . . . . 6 . . . 4 Rewire 10 | . . . . . . . . . . . . . . . . . . . . . . . . . . 10 Trap . | . . . . . . . . . . . . . . . . . . . . . . . . . . . Miscellaneous . | . . . . . . . . . . . . . . . . . . . . . . . . . . . Route ------- -11/Scrapyard -10/Materials -10/Mines (discovered 4 exits: [*Mat x2] / [*Exi] / [*Sub]) -10/Exiles (discovered 2 exits: *Min x2) -9/Mines -8/Materials (discovered 2 exits: *Fac x2) -7/Factory (discovered 4 exits: *Fac x2 / *Low x2) -7/Lower Caves -7/Lower Caves (discovered 2 exits: *Fac / *Dat) -7/Data Miner -6/Proximity Caves -6/Factory (discovered 3 exits: *Fac x2 / Low) -5/Factory (discovered 6 exits: *Fac x4 / *Upp x2) -5/Upper Caves -5/Upper Caves (discovered 2 exits: *Fac / *Zhi) -5/Zhirov -4/Proximity Caves -4/Factory (discovered 8 exits: Res x4 / *Upp x2 / Ext x2) -4/Upper Caves -4/Upper Caves (discovered 2 exits: *Res / *War) -4/Warlord -3/Proximity Caves -3/Research (discovered 2 exits: Res / *Arm) -3/Armory -3/Lab -2/Research (discovered 3 exits: *Acc x2 / *Tes) -2/Testing (discovered 1 exit: *Acc) History --------- Turn | Location | Event 9 | -11/Scrapyard | Discovered new exit (range 15) 77 | -11/Scrapyard | Entered Materials 235 | -10/Materials | Met 8R-AWN 283 | -10/Materials | Discovered new exit (range 9) 295 | -10/Materials | Entered Mines 296 | -10/Mines | Followed 8R-AWN into the Mines 317 | -10/Mines | Build established: Mutant 357 | -10/Mines | Found a hidden stash of uninstalled traps 392 | -10/Mines | Met a Derelict bent on vengeance 399 | -10/Mines | Discovered new exit (range 11) 415 | -10/Mines | Discovered new exit (range 6) 560 | -10/Mines | Escorted by a lone wolf Derelict 728 | -10/Mines | Discovered new exit (range 6) 755 | -10/Mines | Received a Rocket Launcher from a helpful Derelict 782 | -10/Mines | Discovered new exit (range 5) 792 | -10/Mines | Entered Exiles 792 | -10/Exiles | Accompanied by 1 ally 793 | -10/Exiles | Identified exit to Mines 836 | -10/Exiles | Welcomed by 8R-AWN 924 | -10/Exiles | Entered Mines 925 | -9/Mines | Assembled infested the area 931 | -9/Mines | Discovered new exit (range 7) 938 | -9/Mines | Core integrity fell below 50% 950 | -9/Mines | Assisted by bots powering up and referring to "LRC-V3" 964 | -9/Mines | Entered Materials 964 | -8/Materials | Accompanied by 2 allies 964 | -8/Materials | Evolved 4 slots: Utility x4 1535 | -8/Materials | Build established: Scavenger-Mutant 1959 | -8/Materials | Build established: Mutant 1977 | -8/Materials | Discovered new exit (range 15) 2064 | -8/Materials | Central database locked down 2768 | -8/Materials | Repaired Katana 2905 | -8/Materials | Discovered new exit (range 15) 3138 | -8/Materials | Build established: Skirmisher 3171 | -8/Materials | Identified exit to Factory 3402 | -8/Materials | Entered Factory 3402 | -7/Factory | Evolved 2 slots: Utility x2 3662 | -7/Factory | Discovered new exit (range 8) 3678 | -7/Factory | Identified exit to Factory 3690 | -7/Factory | Build established: Scout 4331 | -7/Factory | Discovered new exit (range 10) 4339 | -7/Factory | Identified exit to Lower Caves 4406 | -7/Factory | Fabricated Adv. Hacking Suite? 4579 | -7/Factory | Build established: Hacker-Scout 4593 | -7/Factory | Discovered exit to Factory (range 14) 4918 | -7/Factory | Entered Lower Caves 5482 | -7/Lower Caves | Learned location of Zion (-6) 5488 | -7/Lower Caves | Discovered new exit (range 15) 5526 | -7/Lower Caves | Identified exit to Lower Caves 5526 | -7/Lower Caves | Entered another Lower Caves area 5686 | -7/Lower Caves | Encountered a Warlord checkpoint 5814 | -7/Lower Caves | Found Alien Artifact 5814 | -7/Lower Caves | Identified Core Expander 5814 | -7/Lower Caves | Installed Core Expander, added new Utility slot 5841 | -7/Lower Caves | Discovered exit to Factory (range 12) 6161 | -7/Lower Caves | Discovered new exit (range 6) 6163 | -7/Lower Caves | Identified exit to Data Miner 6173 | -7/Lower Caves | Entered Data Miner 6173 | -7/Data Miner | Discovered new exit (range 6) 6183 | -7/Data Miner | Met Data Miner 6195 | -7/Data Miner | Learned location of Section 7 (-2) 6195 | -7/Data Miner | Acquired the access code to Warlord's prototype stash 6205 | -7/Data Miner | Received God Mode back door access code from Data Miner 6229 | -7/Data Miner | Destroyed Data Miner 6241 | -7/Data Miner | Found Prototype Hackware 6243 | -7/Data Miner | Found Prototype Hackware 6244 | -7/Data Miner | Data Conduit disabled 6276 | -7/Data Miner | Identified exit to Proximity Caves 6277 | -7/Data Miner | Entered Proximity Caves 6300 | -6/Proximity Caves | Lost 3 parts (1p1u1w) 6506 | -6/Proximity Caves | Build established: Hacker-Assassin 6744 | -6/Proximity Caves | Received a Behemoth hack from an annoying Tinkerer 7124 | -6/Proximity Caves | Core integrity fell below 50% 7466 | -6/Proximity Caves | Discovered exit to Factory (range 15) 7511 | -6/Proximity Caves | Entered Factory 7511 | -6/Factory | Evolved 2 slots: Utility x2 7512 | -6/Factory | Identified exit to Lower Caves 7929 | -6/Factory | Discovered new exit (range 14) 7955 | -6/Factory | Build established: Hacker-Scout 7976 | -6/Factory | Identified Deep Network Scanner 7976 | -6/Factory | Identified Quantum Router 8138 | -6/Factory | Discovered new exit (range 15) 8169 | -6/Factory | Identified exit to Factory 8170 | -6/Factory | Entered another Factory area 8170 | -5/Factory | Evolved 2 slots: Utility x2 8203 | -5/Factory | Identified exit to Upper Caves 8218 | -5/Factory | Identified exit to Factory 8295 | -5/Factory | Repaired Imp. Propulsion Shielding 8465 | -5/Factory | Build established: Wizard-Scout 8870 | -5/Factory | Fabricated Lgt. Regenerative Plating? 9379 | -5/Factory | Entered Upper Caves 10955 | -5/Upper Caves | Discovered new exit (range 15) 11151 | -5/Upper Caves | Learned location of Armory (-3) 11179 | -5/Upper Caves | Identified exit to Upper Caves 11184 | -5/Upper Caves | Entered another Upper Caves area 11185 | -5/Upper Caves | Encountered a Warlord checkpoint 11268 | -5/Upper Caves | Discovered exit to Factory (range 17) 11886 | -5/Upper Caves | Learned 8 Factory zone layouts 11886 | -5/Upper Caves | Learned Extension stockpile data 11886 | -5/Upper Caves | Learned Extension terminal intel 12223 | -5/Upper Caves | Discovered new exit (range 16) 12239 | -5/Upper Caves | Identified exit to Zhirov 12248 | -5/Upper Caves | Entered Zhirov 12248 | -5/Zhirov | Discovered new exit (range 3) 12259 | -5/Zhirov | Met Zhirov 12273 | -5/Zhirov | Learned location of Quarantine (-3) 12273 | -5/Zhirov | Learned location of Testing (-2) 12273 | -5/Zhirov | Learned location of Command (-1) 12276 | -5/Zhirov | Zhirov requested help retrieving the SGEMP Prototype 12288 | -5/Zhirov | Found Alien Artifact 12288 | -5/Zhirov | Identified Integrated Reactor 12288 | -5/Zhirov | Installed Integrated Reactor, increased core energy generation (+10) 12306 | -5/Zhirov | Found Alien Artifact 12416 | -5/Zhirov | Identified exit to Proximity Caves 12417 | -5/Zhirov | Entered Proximity Caves 12601 | -4/Proximity Caves | Spotted B-86 Titan 12654 | -4/Proximity Caves | Discovered exit to Factory (range 14) 12660 | -4/Proximity Caves | Entered Factory 12660 | -4/Factory | Evolved 2 slots: Propulsion x1, Utility x1 12661 | -4/Factory | Identified exit to Research 12682 | -4/Factory | Lost 4 parts (4u) 12731 | -4/Factory | Crushed by falling debris 12827 | -4/Factory | Repaired Imp. Propulsion Shielding 12902 | -4/Factory | Identified exit to Upper Caves 12902 | -4/Factory | Identified exit to Extension 13108 | -4/Factory | Fabricated Cmb. Linear Gravjet (x2) 13172 | -4/Factory | Fabricated G-67 Veteran? 13193 | -4/Factory | Build established: Hacker-Scout 13215 | -4/Factory | Fabricated Lgt. Regenerative Plating (x1) 13246 | -4/Factory | Fabricated Lrn. Sensor Array (x2) 13269 | -4/Factory | Entered Upper Caves 13269 | -4/Upper Caves | Accompanied by 3 allies 13384 | -4/Upper Caves | Learned 4 Research zone layouts 13466 | -4/Upper Caves | Discovered new exit (range 19) 13760 | -4/Upper Caves | Identified exit to Upper Caves 13761 | -4/Upper Caves | Entered another Upper Caves area 13775 | -4/Upper Caves | Discovered exit to Research (range 13) 14283 | -4/Upper Caves | Discovered new exit (range 20) 14291 | -4/Upper Caves | Identified exit to Warlord 14292 | -4/Upper Caves | Attracted the attention of an 0b10 checkpoint 14292 | -4/Upper Caves | Entered Warlord 14306 | -4/Warlord | System corruption cleaned by Quarantine Array 14364 | -4/Warlord | Visited the Vortex Lab 14370 | -4/Warlord | Found Prototype Energy Cannon 14371 | -4/Warlord | Identified Vortex Driver 14374 | -4/Warlord | Found Prototype Energy Gun 14374 | -4/Warlord | Identified Vortex Rail 14380 | -4/Warlord | Warlord's base attacked by MAIN.C 14400 | -4/Warlord | Met Warlord 14403 | -4/Warlord | Opened Warlord's prototype stash 14403 | -4/Warlord | Found Prototype Processor 14403 | -4/Warlord | Identified Exp. Armor Integrity Analyzer 14491 | -4/Warlord | Opened side exit 14496 | -4/Warlord | Discovered new exit (range 15) 14730 | -4/Warlord | Warlord forces counterattacked 14808 | -4/Warlord | Lost 4 allies 14889 | -4/Warlord | Spotted B-90 Cyclops 14890 | -4/Warlord | Spotted Striker 14894 | -4/Warlord | Spotted B-86 Titan 14896 | -4/Warlord | Lost 6 allies 14908 | -4/Warlord | Spotted Executioner 14913 | -4/Warlord | Identified exit to Proximity Caves 14913 | -4/Warlord | Entered Proximity Caves 14941 | -3/Proximity Caves | Lost 5 allies 15397 | -3/Proximity Caves | Discovered exit to Research (range 14) 15400 | -3/Proximity Caves | Entered Research 15400 | -3/Research | Evolved 2 slots: Utility x2 15401 | -3/Research | Identified exit to Armory 15402 | -3/Research | Identified exit to Research 15466 | -3/Research | Fabricated Adv. Hacking Suite (x1) 15841 | -3/Research | Spotted B-86 Titan 15843 | -3/Research | Befriended a Behemoth using the annoying Tinkerer's hack 15876 | -3/Research | Build established: Hacker-Sprinter 15952 | -3/Research | Spotted B-86 Titan 15966 | -3/Research | Befriended a Behemoth using the annoying Tinkerer's hack 15999 | -3/Research | Entered Armory 16087 | -3/Armory | Identified Transdimensional Reconstructor 16087 | -3/Armory | Warped through subspace to slip node 16087 | -3/Armory | Discovered new exit (range 1) 16087 | -3/Armory | Identified exit to Lab 16701 | -3/Armory | Entered Lab 16702 | -3/Lab | Discovered exit to Research (range 9) 16706 | -3/Lab | Unable to decrypt terminal 16706 | -3/Lab | Opened the door to a hidden lab 16706 | -3/Lab | Detected by scanners 16707 | -3/Lab | Gained access to the hidden lab's interior 16713 | -3/Lab | Found Transdimensional Reconstructor 16720 | -3/Lab | Found Alien Artifact 16720 | -3/Lab | Identified Integrated Mediator 16720 | -3/Lab | Installed Integrated Mediator, increased core attachment efficiency 16728 | -3/Lab | Found Alien Artifact 16728 | -3/Lab | Identified Core Regenerator 16728 | -3/Lab | Used Core Regenerator, restored core integrity (+311) 16738 | -3/Lab | Found Prototype Protection 16740 | -3/Lab | Found Quantum Router 16767 | -3/Lab | Found Prototype Energy Gun 16767 | -3/Lab | Identified Hyp. EM Gauss Rifle 16768 | -3/Lab | Identified Med. Regenerative Plating 16795 | -3/Lab | Confronted by A5 16803 | -3/Lab | Entered Research 16803 | -2/Research | Warlord forces began assault on 0b10 16803 | -2/Research | Evolved 2 slots: Utility x2 16851 | -2/Research | Spotted B-90 Cyclops 16897 | -2/Research | Found Prototype Processor 16897 | -2/Research | Identified Spectral Analyzer 16913 | -2/Research | Research machine network offline 16987 | -2/Research | Spotted Tracker 16991 | -2/Research | Spotted Tracker 17003 | -2/Research | Destroyed Tracker 17012 | -2/Research | Spotted Combat Programmer 17013 | -2/Research | Destroyed Tracker 17016 | -2/Research | Spotted Combat Programmer 17034 | -2/Research | Destroyed Combat Programmer 17072 | -2/Research | Lost 14 parts (3n10u1w) 17080 | -2/Research | Found Prototype Energy Gun 17080 | -2/Research | Identified Immobilizer 17085 | -2/Research | Borebot progress halted 17482 | -2/Research | Discovered new exit (range 18) 17490 | -2/Research | Identified exit to Access 17528 | -2/Research | Met up with Warlord 17530 | -2/Research | Spotted Tracker 17531 | -2/Research | Spotted Tracker 17556 | -2/Research | Spotted Striker 17566 | -2/Research | Spotted Combat Programmer 17600 | -2/Research | Found Prototype Processor 17600 | -2/Research | Identified Exp. Melee Analysis Suite 17604 | -2/Research | Combat Programmer assimilated allied WV-K5X(s) 17616 | -2/Research | Spotted 49-7QK(D) 17757 | -2/Research | Build established: Scavenger-Scout 17761 | -2/Research | Found Exp. Melee Analysis Suite 17769 | -2/Research | Found Prototype Processor 17769 | -2/Research | Identified Exp. Core Analyzer 17772 | -2/Research | Found Exp. Core Analyzer 17814 | -2/Research | Spotted Striker 17815 | -2/Research | Discovered exit to Access (range 19) 17980 | -2/Research | Spotted Striker 17981 | -2/Research | Spotted Striker 18037 | -2/Research | Spotted Striker 18041 | -2/Research | Spotted Striker 18075 | -2/Research | Warlord invited to help at Command 18075 | -2/Research | Given Cave Seal Controls access code 18078 | -2/Research | Met DD-05H 18090 | -2/Research | Spotted Striker 18358 | -2/Research | Spotted Striker 18359 | -2/Research | Spotted Striker 18365 | -2/Research | Destroyed Striker 18376 | -2/Research | Destroyed Striker 18502 | -2/Research | Spotted Tracker 18503 | -2/Research | Spotted Tracker 18505 | -2/Research | Spotted Tracker 18508 | -2/Research | Core integrity fell below 50% 18508 | -2/Research | Warped through subspace 18511 | -2/Research | Spotted Striker 18538 | -2/Research | Lost 3 parts (2u1w) 18610 | -2/Research | P-80 Master assimilated allied C4-PHJ(b) 18614 | -2/Research | Warlord destroyed during the assault 18726 | -2/Research | Discovered new exit (range 5) 18728 | -2/Research | Identified exit to Testing 18729 | -2/Research | Entered Testing 18742 | -2/Testing | Rewired PL-1RXAADLVJT 18786 | -2/Testing | Build established: Scavenger-Mutant 18831 | -2/Testing | Found Spectral Analyzer 18842 | -2/Testing | Discovered exit to Access (range 15) 18891 | -2/Testing | Intercept squad dispatched 18897 | -2/Testing | Spotted Tracker 18898 | -2/Testing | Spotted Tracker 18909 | -2/Testing | Scanned by Researcher 18919 | -2/Testing | Destroyed Tracker 18920 | -2/Testing | Core integrity fell below 20% 18924 | -2/Testing | Spotted Combat Programmer 18925 | -2/Testing | Destroyed by G-73 Enforcer with Phase Gun Last Messages --------------- technology, formulating response. 18913_ Held in stasis. 18913_ C-65 Expert is analyzing... 18913_ Tracker suffers critical hit (Impale). 18913_ Destroyed Prototype Device. 18914_ Centrium Light Armor Plating destroyed. 18914_ Med. Regenerative Plating destroyed. 18915_ Impulse Thruster Array destroyed. 18917_ Held in stasis. 18917_ C-65 Expert is analyzing... 18917_ Adv. Target Analyzer destroyed. 18919_ Tracker destroyed. 18919_ K-01 Serf collects debris. 18921_ Held in stasis. 18921_ C-65 Expert is analyzing... 18921_ Cld. Field Propulsion Drive destroyed. 18921_ Exp. Melee Analysis Suite destroyed. 18924_ Penetrated by Slug. 18925_ Held in stasis. 18925_ C-65 Expert is analyzing... Map ----- +----------------------------------------------------+ | ????????????# #???????# #??????????# #%[=% | | ????????????# #???????# #??????????##########=%=% | | ????????????# #???????#c#?????????????????### $$$ | | ????????????# ????????# #???????????????????# !$$ | | ????????????# ????????# #???????????????????# * | | ????????????? ????????# #???#####???????????# | | ????????????? ??????### ## #???????????# | | ????????????? ???#### k + #???????????##### | | ????????????? ???# x # #???????????????? | | ????????????? ???# #?? #???????????????? | | ??????????????????# xh#??? #???????????????? | | ????????????#?????#### #?? #???????????????? | | ????????????# ???????# #?? #???????????????? | | ????????????# ####### u#? #???????????????? | | ????????????# #?!! #???????????????? | | ????????????# g %# !! #???????????????? | | ????????????# hgcg# #???????????????? | | ????????????# + #???????????????? | | ????????????# # #???????????????? | | ????????????# """ """ ##########?????????????? | | ????##+###### """w""" #? #?????????????? | | ???# """ """ #? #?????????????? | | ???+ # #?????????????? | | ?????? "" s#! #?????????????? | | ???????""" ######## k!+% #?????????????? | | ????????T ????????# @# #?????????????? | | ????????"" ??????????# # / ????????? | | ?????????????????????# #? # ??? | | ?????????????????????# #? #??? ? | | ?????????????????????# #??#######??????? """?? | | ?????????????????????# #??????????????????????? | | ?????????????????????+ #??????????????????????? | | ?????????????????????# #??????????????????????? | | ?????????????????????# #??????????????????????? | | ?????????????????????# #??????????????????????? | | ?????????????????????# #??????????????????????? | | ?????????????????????# #??????????????????????? | | ?????????????????????# #??????????????????????? | | ?????????????????????# ???????????????????????? | | ?????????????????????# ???????????????????????? | | ?????????????????????# ???????????????????????? | | ?????????????????????# p???????????????????????? | | ?????????????????????# ???????????????????????? | | ?????????????????????+ ???????????????????????? | | ?????????????????????# ???????????????????????? | | ?????????????????????# ???????????????????????? | | ?????????????????????#####???????????????????????? | | ?????????????????????????????????????????????????? | | ?????????????????????????????????????????????????? | | ?????????????????????????????????????????????????? | +----------------------------------------------------+ Best States ------------- Heat Dissipation 49 Energy Generation 33 Energy Capacity 315 Matter Stores 300 Matter Capacity 300 Sight Range 24 Robot Scan Range 18 Terrain Scan Range 20 Terrain Scan Density 310 Cloak Strength 4 Additional Mass Support 6 Corruption Block 20 Armor Coverage 525 Propulsion Shielding 66 Weapon Shielding 90 Evasion (%) 76 Targeting Accuracy 8 Melee Accuracy 30 Target Analysis 12 Core Analysis 12 Armor Integrity Analysis 50 Recoil Reduction 6 Matter Filtering 50 Offensive Hacking 49 Defensive Hacking 49 Authchip Count 2 Item Schematics ----------------- Adv. Hacking Suite | -7/Factory | Hacked Greatsword | -7/Factory | Scanalyzed Combat Drone Bay | -7/Data Miner | Free Lgt. Regenerative Plating | -7/Data Miner | Free Cld. Cesium-ion Thruster | -7/Data Miner | Free Thermal Defense Suite | -7/Data Miner | Free Force Rifle | -7/Data Miner | Free Gyrokinetic Inverter | -7/Data Miner | Free Adv. Trap Extractor | -7/Data Miner | Free Disruptor Cannon | -7/Data Miner | Free Force Lance | -6/Factory | Hacked Lrn. Sensor Array | -5/Factory | Hacked Lrn. Terrain Scanner | -5/Factory | Hacked Imp. Gyrokinetic Inverter | -5/Factory | Hacked Assault Drone Bay | -5/Zhirov | Free Exp. Heat Sink | -5/Zhirov | Free Exp. Optical Array | -5/Zhirov | Free Imp. Arc Thrower | -5/Zhirov | Free Robot Schematics ------------------ S-27 Virus | -7/Factory | Hacked W-25 Informer | -7/Data Miner | Free R-10 Processor | -7/Data Miner | Free B-48 Gladiator | -7/Data Miner | Free Y-54 Guardian | -7/Data Miner | Free G-50 Soldier | -7/Data Miner | Free I-36 Angel | -7/Data Miner | Free E-15 Imp | -7/Data Miner | Free A-15 Conveyor | -7/Data Miner | Free Fabricated ------------ Adv. Hacking Suite | x1 | -7/Factory Lgt. Regenerative Plating | x1 | -5/Factory Cmb. Linear Gravjet | x2 | -4/Factory | Preloaded G-67 Veteran | x3 | -4/Factory | Preloaded Lgt. Regenerative Plating | x1 | -4/Factory | Authchip Lrn. Sensor Array | x2 | -4/Factory Adv. Hacking Suite | x1 | -3/Research Repaired ---------- Katana | 56% | -8/Materials Imp. Propulsion Shielding | 69% | -5/Factory Imp. Propulsion Shielding | 42% | -4/Factory Studied --------- None Alien Tech Used ----------------- Core Expander Integrated Reactor Transdimensional Reconstructor Integrated Mediator Core Regenerator Achievements -------------- Coming In Hot Follow The Leader Incoming! Welcome To The Revolution Woof! Challenges ------------ None Game ------ Seed LaunchProtonTearclaws Manual? 0 Play Time 02:43:34 Cumulative 492.6 hours Start 2025.10.29 @ 15:39:28 End 2025.10.29 @ 22:39:32 Sessions 3 Manual Loads 0 Difficulty Rogue Special Mode None Game No. 824 Rogue 669 Adventurer 148 Explorer 7 Win Type - Total 24 Types 19/1/3/1/0/0/0/0/0/0 Lore% 72 Gallery% 77 Achievement% 59 Wizard Run 0 Options --------- Layout 1 ASCII 0 Keyboard 0 Movement Numpad Keybinds 0 Fullscreen 2 Font 24/Smallcaps Map View 50x40 Zoom Use 0% Tactical HUD 1 Map Filters NONE Filters NONE Steam 1 RUN: 8af654ef-f00f-4aad-bb02-f99327e484b0